[Event "Superettan 2017/2018"]
[Site "Vegagatan 20, Gothenburg, Sweden"]
[Date "2018.02.03"]
[Round "2.2"]
[White "Shkuran, Danylo"]
[Black "Welin, Mats"]
[Result "1-0"]
[TimeControl "90 minutes for 40 moves + 30 minutes for the rest of the game + 30 seconds per move from move one."]
[WhiteTitle "IM"]
[BlackTitle "FM"]
[WhiteFideId "14106248"]
[BlackFideId "1705180"]
[WhiteElo "2397"]
[BlackElo "2314"]

1. e4 {[%clk 01:30:52]} {[%emt 00:00:07]} e5 {[%clk 01:30:22]} {[%emt
00:00:39]} 2. Nf3 {[%clk 01:31:15]} {[%emt 00:00:07]} Nc6 {[%clk 01:30:36]}
{[%emt 00:00:16]} 3. Bb5 {[%clk 01:31:34]} {[%emt 00:00:11]} a6 {[%clk
01:30:31]} {[%emt 00:00:35]} 4. Ba4 {[%clk 01:31:56]} {[%emt 00:00:07]} Nf6
{[%clk 01:30:32]} {[%emt 00:00:29]} 5. Qe2 {[%clk 01:31:29]} {[%emt 00:00:57]}
Be7 {[%clk 01:30:11]} {[%emt 00:15:54]} 6. c3 {[%clk 01:31:19]} b5 {[%clk
01:26:56]} 7. Bb3 {[%clk 01:29:53]} O-O {[%clk 01:26:19]} 8. O-O {[%clk
01:30:18]} d5 {[%clk 01:25:23]} 9. d3 {[%clk 01:29:21]} Be6 {[%clk 01:23:48]}
10. Rd1 {[%clk 01:24:16]} {[%emt 00:03:03]} Re8 {[%clk 01:21:15]} {[%emt
00:03:03]} 11. Nbd2 {[%clk 01:15:45]} {[%emt 00:09:01]} h6 {[%clk 01:18:40]}
{[%emt 00:03:04]} 12. Nf1 {[%clk 01:14:42]} {[%emt 00:16:47]} Bf8 {[%clk
01:16:03]} 13. h3 {[%clk 01:09:41]} a5 {[%clk 01:02:09]} {[%emt 00:07:49]} 14.
d4 {[%clk 00:46:23]} {[%emt 00:23:48]} dxe4 {[%clk 00:48:50]} {[%emt 00:13:49]}
15. Nxe5 {[%clk 00:44:31]} {[%emt 00:02:22]} Nxe5 {[%clk 00:32:53]} {[%emt
00:16:27]} 16. dxe5 {[%clk 00:44:31]} {[%emt 00:00:30]} Nd7 {[%clk 00:31:19]}
{[%emt 00:02:04]} 17. Bxe6 {[%clk 00:39:31]} {[%emt 00:05:30]} Rxe6 {[%clk
00:31:02]} {[%emt 00:00:47]} 18. Qxb5 {[%clk 00:38:53]} {[%emt 00:01:08]} c6
{[%clk 00:27:16]} {[%emt 00:04:15]} 19. Qb7 {[%clk 00:38:43]} {[%emt 00:00:40]}
Re7 {[%clk 00:25:55]} {[%emt 00:01:51]} 20. Qxc6 {[%clk 00:34:36]} {[%emt
00:04:37]} Qc8 {[%clk 00:24:25]} {[%emt 00:02:00]} 21. Qxe4 {[%clk 00:33:45]}
{[%emt 00:01:20]} Nxe5 {[%clk 00:23:31]} {[%emt 00:01:24]} 22. Ne3 {[%clk
00:31:12]} {[%emt 00:03:03]} Ra6 {[%clk 00:22:17]} {[%emt 00:01:44]} 23. b3
{[%clk 00:22:35]} {[%emt 00:09:08]} Re8 {[%clk 00:18:07]} {[%emt 00:04:39]} 24.
c4 {[%clk 00:19:39]} {[%emt 00:03:27]} Rf6 {[%clk 00:12:23]} {[%emt 00:06:13]}
25. Qh4 {[%clk 00:12:30]} {[%emt 00:07:39]} Bc5 {[%clk 00:06:59]} {[%emt
00:05:55]} 26. Rd5 {[%clk 00:10:33]} {[%emt 00:02:27]} Rg6 {[%clk 00:04:54]}
{[%emt 00:02:35]} 27. Kf1 {[%clk 00:08:27]} {[%emt 00:02:36]} a4 {[%clk
00:04:24]} {[%emt 00:01:01]} 28. Bd2 {[%clk 00:07:25]} {[%emt 00:01:31]} Be7
{[%clk 00:03:48]} {[%emt 00:01:05]} 29. Qh5 {[%clk 00:04:30]} {[%emt 00:03:25]}
Bf6 {[%clk 00:02:47]} {[%emt 00:01:31]} 30. Re1 {[%clk 00:03:42]} {[%emt
00:01:18]} axb3 {[%clk 00:01:39]} {[%emt 00:01:39]} 31. axb3 {[%clk 00:04:09]}
{[%emt 00:00:03]} Qb8 {[%clk 00:01:50]} {[%emt 00:00:20]} 32. Rb5 {[%clk
00:02:43]} {[%emt 00:01:56]} Qa8 {[%clk 00:01:09]} {[%emt 00:01:10]} 33. Nd5
{[%clk 00:02:51]} {[%emt 00:00:22]} Nc6 {[%clk 00:00:32]} {[%emt 00:01:07]} 34.
Be3 {[%clk 00:00:32]} {[%emt 00:02:49]} Qc8 {[%clk 00:00:33]} {[%emt 00:00:29]}
35. Rc5 {[%clk 00:00:36]} {[%emt 00:00:26]} Qb7 {[%clk 00:00:46]} {[%emt
00:00:17]} 36. Qf3 {[%clk 00:00:52]} {[%emt 00:00:15]} Bd8 {[%clk 00:00:34]}
{[%emt 00:00:41]} 37. b4 {[%clk 00:01:04]} {[%emt 00:00:18]} Qd7 {[%clk
00:00:49]} {[%emt 00:00:15]} 38. Nf4 {[%clk 00:00:56]} {[%emt 00:00:37]} Rf6
{[%clk 00:00:49]} {[%emt 00:00:30]} 39. Rd1 {[%clk 00:01:19]} {[%emt 00:00:07]}
Qb7 {[%clk 00:00:37]} {[%emt 00:00:42]} 40. b5 {[%clk 00:01:02]} {[%emt
00:00:47]} Na5 {[%clk 00:00:40]} {[%emt 00:00:28]} 41. Qxb7 {[%clk 00:00:33]}
{[%emt 00:00:59]} Nxb7 {[%clk 00:01:05]} {[%emt 00:00:05]} 42. Rc8 {[%clk
00:30:01]} {[%emt 00:01:01]} 1-0

[Event "Superettan 2017/2018"]
[Site "Vegagatan 20, Gothenburg, Sweden"]
[Date "2018.02.03"]
[Round "2.3"]
[White "Al Hadarani, Hatim"]
[Black "Lindberg, Bengt"]
[Result "1/2-1/2"]
[TimeControl "90 minutes for 40 moves + 30 minutes for the rest of the game + 30 seconds per move from move one."]
[WhiteTitle "FM"]
[BlackTitle "IM"]
[WhiteFideId "9400273"]
[BlackFideId "1700359"]
[WhiteElo "2319"]
[BlackElo "2387"]

1. e4 {[%clk 01:29:07]} {[%emt 00:01:53]} e5 {[%clk 01:29:22]} {[%emt
00:01:38]} 2. Nc3 {[%clk 01:28:03]} {[%emt 00:15:54]} Nf6 {[%clk 01:28:24]} 3.
Nf3 {[%clk 01:27:13]} Nc6 {[%clk 01:27:28]} 4. g3 {[%clk 01:25:34]} Bc5 {[%clk
01:22:54]} 5. Bg2 {[%clk 01:25:35]} O-O {[%clk 01:19:20]} {[%emt 00:01:39]} 6.
Nxe5 {[%clk 01:19:25]} {[%emt 00:06:41]} Nxe5 {[%clk 01:16:39]} {[%emt
00:03:10]} 7. d4 {[%clk 01:19:45]} {[%emt 00:00:11]} Bd6 {[%clk 01:03:59]}
{[%emt 00:23:18]} 8. dxe5 Bxe5 {[%clk 01:02:09]} 9. Ne2 {[%clk 01:00:18]}
{[%emt 00:12:39]} Bd6 {[%clk 00:57:59]} {[%emt 00:04:39]} 10. O-O {[%clk
00:48:58]} {[%emt 00:11:51]} Re8 {[%clk 00:54:41]} {[%emt 00:03:47]} 11. Qd3
{[%clk 00:45:32]} {[%emt 00:03:56]} Bc5 {[%clk 00:54:02]} {[%emt 00:01:08]} 12.
Nc3 {[%clk 00:44:46]} {[%emt 00:01:18]} Ng4 {[%clk 00:36:44]} {[%emt 00:17:48]}
13. h3 {[%clk 00:40:52]} {[%emt 00:04:25]} Ne5 {[%clk 00:37:03]} {[%emt
00:00:10]} 14. Qe2 {[%clk 00:32:36]} {[%emt 00:08:46]} a6 {[%clk 00:36:29]}
{[%emt 00:01:04]} 15. Nd5 {[%clk 00:25:37]} {[%emt 00:07:30]} d6 {[%clk
00:34:39]} {[%emt 00:02:19]} 16. Be3 {[%clk 00:25:34]} {[%emt 00:00:33]} Bd7
{[%clk 00:29:02]} {[%emt 00:06:07]} 17. c4 {[%clk 00:18:30]} {[%emt 00:07:35]}
Bxe3 {[%clk 00:26:38]} {[%emt 00:02:54]} 18. Nxe3 {[%clk 00:18:38]} {[%emt
00:00:22]} Bc6 {[%clk 00:20:57]} {[%emt 00:06:10]} 19. Qc2 {[%clk 00:17:24]}
{[%emt 00:01:45]} a5 {[%clk 00:19:21]} {[%emt 00:02:06]} 20. Nf5 {[%clk
00:15:27]} {[%emt 00:02:27]} b6 {[%clk 00:17:13]} {[%emt 00:02:38]} 21. Kh2
{[%clk 00:13:05]} {[%emt 00:02:53]} g6 {[%clk 00:16:04]} {[%emt 00:01:39]} 22.
Ne3 {[%clk 00:11:44]} {[%emt 00:01:50]} Nd7 {[%clk 00:13:14]} {[%emt 00:03:20]}
23. Rae1 {[%clk 00:08:13]} {[%emt 00:04:02]} Nc5 {[%clk 00:12:04]} {[%emt
00:01:39]} 24. Qc3 {[%clk 00:04:30]} {[%emt 00:04:15]} h5 {[%clk 00:08:39]}
{[%emt 00:03:55]} 25. Nd5 {[%clk 00:04:43]} {[%emt 00:00:17]} Bxd5 {[%clk
00:09:04]} {[%emt 00:00:05]} 26. cxd5 {[%clk 00:04:56]} {[%emt 00:00:16]} Nd7
{[%clk 00:06:21]} {[%emt 00:03:13]} 27. f4 {[%clk 00:05:09]} {[%emt 00:00:18]}
f6 {[%clk 00:06:46]} {[%emt 00:00:05]} 28. h4 {[%clk 00:05:10]} {[%emt
00:00:29]} Qe7 {[%clk 00:05:03]} {[%emt 00:02:13]} 29. Bh3 {[%clk 00:02:40]}
{[%emt 00:03:01]} Nc5 {[%clk 00:05:31]} {[%emt 00:00:01]} 30. Qf3 {[%clk
00:02:08]} {[%emt 00:01:02]} Kg7 {[%clk 00:02:34]} {[%emt 00:03:27]} 31. f5
{[%clk 00:01:53]} {[%emt 00:00:45]} gxf5 {[%clk 00:01:26]} {[%emt 00:01:38]} 32.
Bxf5 {[%clk 00:01:58]} {[%emt 00:00:25]} Rh8 {[%clk 00:01:55]} {[%emt
00:00:02]} 33. g4 {[%clk 00:00:57]} {[%emt 00:01:31]} hxg4 {[%clk 00:02:19]}
{[%emt 00:00:05]} 34. Qxg4+ {[%clk 00:00:58]} {[%emt 00:00:29]} Kf8 {[%clk
00:02:49]} 35. Rg1 {[%clk 00:00:51]} {[%emt 00:00:37]} Nd3 {[%clk 00:02:46]}
{[%emt 00:00:32]} 36. Ref1 {[%clk 00:00:32]} {[%emt 00:00:49]} Ne5 {[%clk
00:03:15]} {[%emt 00:00:01]} 37. Qg3 {[%clk 00:00:36]} {[%emt 00:00:26]} Ke8
{[%clk 00:03:26]} {[%emt 00:00:18]} 38. Qg8+ {[%clk 00:00:32]} {[%emt
00:00:35]} Rxg8 {[%clk 00:01:04]} {[%emt 00:02:53]} 39. Rxg8+ {[%clk 00:01:01]}
{[%emt 00:00:01]} Qf8 {[%clk 00:01:28]} {[%emt 00:00:06]} 40. Rxf8+ {[%clk
00:00:56]} {[%emt 00:00:34]} Kxf8 {[%clk 00:01:55]} {[%emt 00:00:02]} 41. Rc1
{[%clk 00:00:51]} {[%emt 00:00:35]} Ra7 {[%clk 00:00:34]} {[%emt 00:01:52]} 42.
Kh3 {[%clk 00:00:35]} {[%emt 00:00:47]} Kg7 {[%clk 00:27:51]} {[%emt 00:03:11]}
43. Rg1+ {[%clk 00:29:50]} {[%emt 00:01:16]} Kh8 {[%clk 00:27:49]} {[%emt
00:00:32]} 44. h5 {[%clk 00:27:42]} {[%emt 00:02:38]} c5 {[%clk 00:11:15]}
{[%emt 00:17:03]} 45. dxc6 {[%clk 00:27:46]} {[%emt 00:00:27]} Nxc6 {[%clk
00:11:40]} {[%emt 00:00:05]} 46. Rd1 {[%clk 00:20:44]} {[%emt 00:07:31]} Kg7
{[%clk 00:12:07]} {[%emt 00:00:04]} 47. Rxd6 {[%clk 00:19:51]} {[%emt
00:01:23]} Rc7 {[%clk 00:12:35]} {[%emt 00:00:01]} 48. Kh4 {[%clk 00:16:42]}
{[%emt 00:03:39]} b5 {[%clk 00:11:04]} {[%emt 00:02:02]} 49. Bd7 {[%clk
00:16:23]} {[%emt 00:00:49]} Ne5 {[%clk 00:10:58]} {[%emt 00:00:35]} 50. Bxb5
{[%clk 00:15:25]} {[%emt 00:01:28]} Rc2 {[%clk 00:11:21]} {[%emt 00:00:07]} 51.
h6+ {[%clk 00:14:01]} {[%emt 00:01:54]} Kxh6 {[%clk 00:09:26]} {[%emt
00:02:24]} 52. Rxf6 {[%clk 00:14:18]} {[%emt 00:00:13]} Kg7 {[%clk 00:09:48]}
{[%emt 00:00:07]} 53. Ra6 {[%clk 00:13:28]} {[%emt 00:01:21]} Rxb2 {[%clk
00:07:14]} {[%emt 00:03:04]} 54. Rxa5 {[%clk 00:13:33]} {[%emt 00:00:25]} Rg2
{[%clk 00:02:40]} {[%emt 00:05:04]} 55. Kh3 {[%clk 00:10:52]} {[%emt 00:03:11]}
Rg1 {[%clk 00:03:09]} {[%emt 00:00:02]} 56. Ba6 {[%clk 00:03:45]} {[%emt
00:07:37]} Kf6 {[%clk 00:02:08]} {[%emt 00:01:30]} 57. Bb7 {[%clk 00:02:39]}
{[%emt 00:01:35]} Rg7 {[%clk 00:00:40]} {[%emt 00:01:58]} 58. Bd5 {[%clk
00:02:45]} {[%emt 00:00:23]} Nf3 {[%clk 00:00:34]} {[%emt 00:00:37]} 59. Ra3
{[%clk 00:02:25]} {[%emt 00:00:51]} Ng5 {[%clk 00:00:58]} {[%emt 00:00:06]} 60.
Kh2 {[%clk 00:01:34]} {[%emt 00:01:21]} Ke5 {[%clk 00:01:13]} {[%emt 00:00:13]}
61. Ba8 {[%clk 00:01:14]} {[%emt 00:00:50]} Kf4 {[%clk 00:01:02]} {[%emt
00:00:42]} 62. e5 {[%clk 00:00:34]} {[%emt 00:01:11]} Kxe5 {[%clk 00:01:30]}
{[%emt 00:00:01]} 63. Ra5+ {[%clk 00:00:37]} {[%emt 00:00:27]} Kd4 {[%clk
00:01:01]} {[%emt 00:00:58]} 64. a4 {[%clk 00:00:33]} {[%emt 00:00:35]} Ne6
{[%clk 00:00:50]} {[%emt 00:00:41]} 65. Rd5+ {[%clk 00:00:39]} {[%emt
00:00:24]} Kc4 {[%clk 00:01:16]} {[%emt 00:00:03]} 66. Rd1 {[%clk 00:00:40]}
{[%emt 00:00:29]} Kb4 {[%clk 00:01:15]} {[%emt 00:00:31]} 67. Bc6 {[%clk
00:00:58]} {[%emt 00:00:13]} Rc7 {[%clk 00:00:59]} {[%emt 00:00:46]} 68. Bd7
{[%clk 00:00:36]} {[%emt 00:00:51]} Nc5 {[%clk 00:01:15]} {[%emt 00:00:14]} 69.
Rb1+ {[%clk 00:00:38]} {[%emt 00:00:29]} Ka5 {[%clk 00:01:33]} {[%emt
00:00:12]} 70. Be8 {[%clk 00:00:48]} {[%emt 00:00:20]} Nxa4 {[%clk 00:01:02]}
{[%emt 00:01:02]} 1/2-1/2

[Event "Superettan 2017/2018"]
[Site "Vegagatan 20, Gothenburg, Sweden"]
[Date "2018.02.03"]
[Round "2.4"]
[White "Rydstrom, Tom"]
[Black "Akesson, Joel"]
[Result "1-0"]
[TimeControl "90 minutes for 40 moves + 30 minutes for the rest of the game + 30 seconds per move from move one."]
[WhiteTitle "FM"]
[BlackTitle "FM"]
[WhiteFideId "1714830"]
[BlackFideId "1705040"]
[WhiteElo "2374"]
[BlackElo "2279"]

1. e4 {[%clk 01:30:30]} {[%emt 00:00:29]} e6 {[%clk 01:30:54]} {[%emt
00:00:06]} 2. d4 {[%clk 01:30:57]} {[%emt 00:00:04]} d5 {[%clk 01:31:20]}
{[%emt 00:00:04]} 3. Nc3 {[%clk 01:30:55]} {[%emt 00:00:32]} Bb4 {[%clk
01:31:44]} {[%emt 00:00:06]} 4. e5 {[%clk 01:30:42]} {[%emt 00:00:43]} b6
{[%clk 01:30:45]} {[%emt 00:01:28]} 5. Qg4 {[%clk 01:29:53]} {[%emt 00:15:52]}
Bf8 {[%clk 01:30:22]} 6. Nf3 {[%clk 01:26:11]} Qd7 {[%clk 01:29:23]} 7. h4
{[%clk 01:24:45]} Ne7 {[%clk 01:26:41]} 8. h5 {[%clk 01:22:34]} h6 {[%clk
01:22:56]} {[%emt 00:04:05]} 9. Be3 {[%clk 01:08:32]} {[%emt 00:14:33]} Ba6
{[%clk 01:14:41]} {[%emt 00:16:21]} 10. Bxa6 Nxa6 {[%clk 01:14:48]} 11. O-O
{[%clk 01:08:18]} Nf5 {[%clk 01:08:15]} {[%emt 00:01:03]} 12. a4 {[%clk
01:06:42]} {[%emt 00:02:07]} Nb4 {[%clk 01:03:12]} {[%emt 00:05:31]} 13. Rfc1
{[%clk 01:07:11]} {[%emt 00:00:04]} Be7 {[%clk 00:59:28]} {[%emt 00:04:13]} 14.
Ne2 {[%clk 01:07:09]} {[%emt 00:00:33]} c5 {[%clk 00:37:18]} {[%emt 00:22:39]}
15. a5 {[%clk 01:05:30]} {[%emt 00:02:11]} O-O {[%clk 00:30:28]} {[%emt
00:07:19]} 16. c3 {[%clk 00:54:27]} {[%emt 00:11:34]} Nd3 {[%clk 00:26:00]}
{[%emt 00:04:57]} 17. Rc2 {[%clk 00:54:07]} {[%emt 00:00:51]} bxa5 {[%clk
00:24:36]} {[%emt 00:01:54]} 18. Rd2 {[%clk 00:51:47]} {[%emt 00:02:50]} c4
{[%clk 00:20:17]} {[%emt 00:04:47]} 19. b3 {[%clk 00:48:54]} {[%emt 00:03:24]}
Qb5 {[%clk 00:15:27]} {[%emt 00:05:17]} 20. bxc4 {[%clk 00:49:15]} {[%emt
00:00:11]} dxc4 {[%clk 00:15:37]} {[%emt 00:00:20]} 21. Nf4 {[%clk 00:45:52]}
{[%emt 00:03:54]} Nxf4 {[%clk 00:09:22]} {[%emt 00:06:45]} 22. Bxf4 {[%clk
00:45:45]} {[%emt 00:00:37]} Qb3 {[%clk 00:08:23]} {[%emt 00:01:28]} 23. Rc1
{[%clk 00:44:56]} {[%emt 00:01:21]} Ba3 {[%clk 00:05:56]} {[%emt 00:02:56]} 24.
Rcc2 {[%clk 00:43:57]} {[%emt 00:01:30]} Qb1+ {[%clk 00:02:29]} {[%emt
00:03:56]} 25. Kh2 {[%clk 00:44:26]} {[%emt 00:00:02]} Rab8 {[%clk 00:01:26]}
{[%emt 00:01:33]} 26. d5 {[%clk 00:43:13]} {[%emt 00:01:44]} Qf1 {[%clk
00:01:24]} {[%emt 00:00:31]} 27. Nd4 {[%clk 00:41:56]} {[%emt 00:01:48]} Rb1
{[%clk 00:01:17]} {[%emt 00:00:37]} 28. Nxf5 {[%clk 00:42:21]} {[%emt
00:00:04]} exf5 {[%clk 00:01:21]} {[%emt 00:00:27]} 29. Qxf5 {[%clk 00:42:26]}
{[%emt 00:00:26]} Qh1 {[%clk 00:01:44]} {[%emt 00:00:06]} 30. Kg3 {[%clk
00:42:55]} {[%emt 00:00:02]} Rg1 {[%clk 00:01:41]} {[%emt 00:00:32]} 31. Qh3
{[%clk 00:38:25]} {[%emt 00:05:00]} g5 {[%clk 00:00:41]} {[%emt 00:01:29]} 32.
hxg6 {[%clk 00:37:48]} {[%emt 00:01:08]} fxg6 {[%clk 00:01:03]} {[%emt
00:00:08]} 33. Qxh1 {[%clk 00:38:14]} {[%emt 00:00:03]} Rxh1 {[%clk 00:01:26]}
{[%emt 00:00:06]} 34. d6 {[%clk 00:36:37]} {[%emt 00:02:08]} g5 {[%clk
00:00:41]} {[%emt 00:01:15]} 35. Be3 {[%clk 00:37:06]} {[%emt 00:00:01]} Bc1
{[%clk 00:00:48]} {[%emt 00:00:23]} 36. d7 {[%clk 00:37:19]} {[%emt 00:00:17]}
1-0

[Event "Superettan 2017/2018"]
[Site "Vegagatan 20, Gothenburg, Sweden"]
[Date "2018.02.03"]
[Round "2.5"]
[White "Fendrich, David"]
[Black "Alle Wahlin, Ambjorn"]
[Result "1/2-1/2"]
[TimeControl "90 minutes for 40 moves + 30 minutes for the rest of the game + 30 seconds per move from move one."]
[WhiteFideId "1705725"]
[BlackFideId "1714805"]
[WhiteElo "2244"]
[BlackElo "2224"]

1. Nf3 {[%clk 01:30:58]} {[%emt 00:00:02]} d5 {[%clk 01:29:29]} {[%emt
00:01:31]} 2. g3 {[%clk 01:31:21]} {[%emt 00:00:07]} Nf6 {[%clk 01:29:34]}
{[%emt 00:00:24]} 3. Bg2 {[%clk 01:31:45]} {[%emt 00:00:07]} c6 {[%clk
01:27:03]} {[%emt 00:17:13]} 4. b3 {[%clk 01:31:16]} Bf5 {[%clk 01:24:59]} 5.
O-O {[%clk 01:31:29]} e6 {[%clk 01:24:20]} 6. Bb2 {[%clk 01:31:44]} a5 {[%clk
01:24:32]} 7. a3 {[%clk 01:23:32]} {[%emt 00:00:02]} h6 {[%clk 01:21:43]}
{[%emt 00:03:19]} 8. d3 {[%clk 01:23:18]} {[%emt 00:00:43]} Be7 {[%clk
01:21:42]} {[%emt 00:00:31]} 9. Nbd2 {[%clk 01:22:31]} {[%emt 00:01:18]} O-O
{[%clk 01:19:21]} {[%emt 00:02:51]} 10. c4 {[%clk 01:18:15]} {[%emt 00:04:45]}
Nbd7 {[%clk 01:19:00]} {[%emt 00:00:51]} 11. Re1 {[%clk 01:13:26]} {[%emt
00:20:41]} Bh7 {[%clk 01:16:46]} 12. Nf1 {[%clk 01:05:17]} Qb6 {[%clk
01:08:19]} {[%emt 00:04:58]} 13. Bc3 {[%clk 00:58:23]} {[%emt 00:07:25]} c5
{[%clk 01:04:08]} {[%emt 00:04:41]} 14. e3 {[%clk 00:55:01]} {[%emt 00:03:52]}
Rfd8 {[%clk 00:59:48]} {[%emt 00:04:50]} 15. Qc2 {[%clk 00:43:18]} {[%emt
00:12:13]} Qa6 {[%clk 00:40:24]} {[%emt 00:19:54]} 16. Qe2 {[%clk 00:37:58]}
{[%emt 00:05:49]} b5 {[%clk 00:35:58]} {[%emt 00:04:56]} 17. Red1 {[%clk
00:36:29]} {[%emt 00:01:59]} a4 {[%clk 00:31:54]} {[%emt 00:04:35]} 18. d4
{[%clk 00:26:26]} {[%emt 00:10:33]} axb3 {[%clk 00:29:00]} {[%emt 00:03:24]} 19.
cxb5 {[%clk 00:26:33]} {[%emt 00:00:23]} Qa4 {[%clk 00:29:17]} {[%emt
00:00:13]} 20. dxc5 {[%clk 00:25:54]} {[%emt 00:01:10]} Bxc5 {[%clk 00:26:16]}
{[%emt 00:03:31]} 21. Nd4 {[%clk 00:24:12]} {[%emt 00:02:12]} Rdb8 {[%clk
00:25:20]} {[%emt 00:01:25]} 22. Qb2 {[%clk 00:21:01]} {[%emt 00:03:41]} Bxa3
{[%clk 00:12:18]} {[%emt 00:13:33]} 23. Qe2 {[%clk 00:20:37]} {[%emt 00:00:54]}
Bc2 {[%clk 00:11:06]} {[%emt 00:01:42]} 24. Rd2 {[%clk 00:16:04]} {[%emt
00:05:02]} Rc8 {[%clk 00:06:35]} {[%emt 00:05:02]} 25. Bb2 {[%clk 00:12:07]}
{[%emt 00:04:27]} Qb4 {[%clk 00:06:19]} {[%emt 00:00:45]} 26. Rxa3 {[%clk
00:07:38]} {[%emt 00:04:59]} Rxa3 {[%clk 00:05:53]} {[%emt 00:00:57]} 27. Bxa3
{[%clk 00:08:03]} {[%emt 00:00:05]} Qxa3 {[%clk 00:06:14]} {[%emt 00:00:09]} 28.
Nxc2 {[%clk 00:08:28]} {[%emt 00:00:06]} bxc2 {[%clk 00:06:13]} {[%emt
00:00:31]} 29. Rxc2 {[%clk 00:08:53]} {[%emt 00:00:05]} Rb8 {[%clk 00:06:31]}
{[%emt 00:00:12]} 30. Nd2 {[%clk 00:06:35]} {[%emt 00:02:48]} Nb6 {[%clk
00:04:55]} {[%emt 00:02:05]} 31. Qd1 {[%clk 00:04:27]} {[%emt 00:02:38]} Na4
{[%clk 00:04:15]} {[%emt 00:01:10]} 32. Bf1 {[%clk 00:04:25]} {[%emt 00:00:33]}
Nd7 {[%clk 00:02:51]} {[%emt 00:01:54]} 33. Qc1 {[%clk 00:03:32]} {[%emt
00:01:23]} Qf8 {[%clk 00:03:17]} {[%emt 00:00:04]} 34. Nb3 {[%clk 00:03:16]}
{[%emt 00:00:46]} Nab6 {[%clk 00:03:12]} {[%emt 00:00:35]} 35. Rc7 {[%clk
00:03:01]} {[%emt 00:00:45]} Qd8 {[%clk 00:02:52]} {[%emt 00:00:51]} 36. Nd4
{[%clk 00:02:41]} {[%emt 00:00:51]} Ne5 {[%clk 00:01:24]} {[%emt 00:01:57]} 37.
Qc3 {[%clk 00:01:37]} {[%emt 00:01:34]} Nbc4 {[%clk 00:01:05]} {[%emt
00:00:49]} 38. Ra7 {[%clk 00:01:24]} {[%emt 00:00:43]} Qf6 {[%clk 00:00:58]}
{[%emt 00:00:37]} 39. Qb4 {[%clk 00:00:49]} {[%emt 00:01:05]} Ng4 {[%clk
00:01:03]} {[%emt 00:00:26]} 40. Ra2 {[%clk 00:00:51]} {[%emt 00:00:27]} e5
{[%clk 00:00:51]} {[%emt 00:00:43]} 41. Nb3 {[%clk 00:23:30]} {[%emt 00:07:50]}
Qb6 {[%clk 00:17:08]} {[%emt 00:14:13]} 42. e4 {[%clk 00:15:53]} {[%emt
00:08:08]} Nf6 {[%clk 00:11:36]} {[%emt 00:06:01]} 43. exd5 {[%clk 00:14:00]}
{[%emt 00:02:23]} Nd6 {[%clk 00:11:38]} {[%emt 00:00:28]} 44. Qc3 {[%clk
00:11:47]} {[%emt 00:02:43]} Nxb5 {[%clk 00:10:16]} {[%emt 00:01:52]} 45. Qxe5
{[%clk 00:09:20]} {[%emt 00:02:57]} Rd8 {[%clk 00:07:00]} {[%emt 00:03:46]} 46.
Qa1 {[%clk 00:06:46]} {[%emt 00:03:04]} Nc7 {[%clk 00:04:18]} {[%emt 00:03:11]}
47. Bc4 {[%clk 00:04:02]} {[%emt 00:03:14]} Ncxd5 {[%clk 00:04:05]} {[%emt
00:00:44]} 48. Ra8 {[%clk 00:03:39]} {[%emt 00:00:52]} Qd6 {[%clk 00:02:22]}
{[%emt 00:02:13]} 49. Nd4 {[%clk 00:02:49]} {[%emt 00:01:20]} Nb6 {[%clk
00:02:19]} {[%emt 00:00:34]} 50. Rxd8+ {[%clk 00:02:48]} {[%emt 00:00:31]} Qxd8
{[%clk 00:02:43]} {[%emt 00:00:05]} 51. Bf1 {[%emt 00:02:06]} 1/2-1/2